Cogmind - Beta 13 @@@ ROGUE MODE // 2024.02.22 @ 14:58:14 Player: Minty Result: Destroyed by X-62 Marksman with Gauss Rifle Performance ------------- Evolutions (2) 1000 Regions Visited (5) 1000 Robots Destroyed (27) 135 Value Destroyed (850) 850 Prototype IDs (5) 100 Alien Tech Used (0) 0 Bonus (167) 167 TOTAL SCORE: 3252 Bonus ------- High Alert Combat Kills 167 Cogmind --------- Core Integrity 0/550 Matter 213/300 Energy 95/100 System Corruption 11% Temperature Cool (0) Movement Flying (35) Location -8/Materials Parts ------- > --- POWER (1) -------- (None) > --- PROPULSION (3) --- Improved VTOL Module > --- UTILITY (5) ------ Visual Processing Unit Improved Signal Interpreter > --- WEAPON (2) ------- High-powered Shotgun > --- INVENTORY (5) ---- Improved Ion Engine Cryofiber Web Heavy Particle Gun Heavy Particle Gun Shock Bomb Launcher Peak State ------------ > --- POWER ------------ Light Deuterium Engine > --- PROPULSION ------- VTOL Module Surge Thruster Improved VTOL Module > --- UTILITY ---------- Heat Sink Visual Processing Unit Improved Signal Interpreter Salvage Targeting Computer System Shield > --- WEAPON ----------- Heavy Particle Gun Heavy Particle Gun > --- INVENTORY -------- Improved Ion Engine Cryofiber Web Authchip [Propulsion] High-powered Shotgun Shock Bomb Launcher [Rating: 32] Favorites ----------- Power Ion Engine Engine Ion Engine Power Core Light Nuclear Core Propulsion VTOL Module Leg Aluminum Leg Flight Unit VTOL Module Utility Salvage Targeting Computer Device Heat Sink Storage Small Storage Unit Processor Salvage Targeting Computer Hackware System Shield Weapon Pulse Rifle Energy Gun Pulse Rifle Ballistic Gun Light Assault Rifle Launcher Missile Launcher Special Melee Weapon Improved Datajack Build | -11 -10 -10 -10 -9 -8 ------- Run | Yrd Mat Min Exi Min Mat Slots Evolved 4 | . . . . . 4 Power . | . . . . . . Propulsion 1 | . . . . . 1 Utility 3 | . . . . . 3 Weapon . | . . . . . . Parts Attached 46 | . 10 5 . . 31 Power 7 | . 2 1 . . 4 Engine 6 | . 1 1 . . 4 Core 1 | . 1 . . . . Reactor . | . . . . . . Propulsion 11 | . 3 1 . . 7 Treads . | . . . . . . Leg . | . . . . . . Wheel . | . . . . . . Hover . | . . . . . . Flight 11 | . 3 1 . . 7 Utility 8 | . 3 1 . . 4 Device 2 | . 1 . . . 1 Storage . | . . . . . . Processor 4 | . 2 . . . 2 Hackware 2 | . . 1 . . 1 Protection . | . . . . . . Artifact . | . . . . . . Weapon 20 | . 2 2 . . 16 Energy Gun 12 | . 2 1 . . 9 Energy Cannon . | . . . . . . Ballistic Gun 4 | . . . . . 4 Ballistic Cannon . | . . . . . . Launcher 3 | . . . . . 3 Special Weapon . | . . . . . . Impact Weapon . | . . . . . . Slashing Weapon . | . . . . . . Piercing Weapon . | . . . . . . Special Melee Weapon 1 | . . 1 . . . Unidentified Prototypes 3 | . . . . . 3 Corrupted Parts 2 | . . . . . 2 System Corruption 11 | . . . . . 11 Parts Lost 14 | . 1 . . . 13 Power 2 | . . . . . 2 Propulsion 7 | . 1 . . . 6 Utility 4 | . . . . . 4 Weapon 1 | . . . . . 1 Highest Loss Streak 6 | . 1 . . . 6 To Critical Strikes . | . . . . . . Average Slot Usage (%) 87 | . 88 86 85 85 87 Engine 9 | . 8 12 14 14 7 Leg 2 | . 12 . . . . Flight 22 | . 15 28 28 28 23 Device 4 | . 4 . . . 7 Storage 1 | . 8 . . . . Processor 18 | . 12 17 14 14 23 Hackware 7 | . . 10 14 14 9 Energy Gun 14 | . 20 15 14 14 11 Ballistic Gun 3 | . 7 . . . 3 Naked Turns . | . . . . . . Heaviest Build 14 | 12 14 8 8 8 12 Greatest Support 20 | 20 20 8 8 8 13 Greatest Overweight (x) 3 | . 3 . . . 3 Average Overweight (x) . | . . . . . . Largest Inventory Capacity 8 | . 8 5 5 5 5 Average Capacity 5 | . 6 5 5 5 5 Most Carried 8 | . 8 5 5 5 5 Average Carried 5 | . 5 4 5 5 4 Final Capacity 8 | 8 5 5 5 5 5 Final Carried 6 | 6 5 5 5 5 5 Class Distribution -------------------- 75% | Sprinter 17% | Mutant 7% | Scavenger-Mutant Dominant Class ---------------- Mutant | -10/Materials Sprinter | -10/Mines Sprinter | -10/Exiles Sprinter | -9/Mines Sprinter | -8/Materials Resources | -11 -10 -10 -10 -9 -8 ----------- Run | Yrd Mat Min Exi Min Mat Matter Collected 651 | 200 95 50 . . 306 Remotely . | . . . . . . Salvage Created 992 | . 225 110 . . 657 Parts 56 | . 13 3 . . 40 Haulers Intercepted 2 | . 1 . . . 1 Recyclers Shooed 1 | . . 1 . . . Parts Field Recycled . | . . . . . . Retrieved Matter . | . . . . . . Parts Self-Destructed . | . . . . . . Prevented . | . . . . . . Kills | -11 -10 -10 -10 -9 -8 ------- Run | Yrd Mat Min Exi Min Mat Combat Hostiles Destroyed 20 | . 2 . . . 18 Guns 16 | . 2 . . . 14 AOE 4 | . . . . . 4 Classes Destroyed 9 | . 4 2 . . 3 Builder 1 | . . 1 . . . Tunneler 1 | . . 1 . . . Hauler 2 | . 1 . . . 1 Recycler 2 | . 1 1 . . . Watcher 1 | . 1 . . . . Swarmer 5 | . . . . . 5 Cutter 2 | . . . . . 2 Grunt 10 | . 2 . . . 8 Sentry 3 | . . . . . 3 Best Kill Streak 9 | . 5 3 . . 9 Combat Bots Only 8 | . 2 . . . 8 Max Kills in Single Turn 2 | . 1 1 . . 2 Gunslinging . | . . . . . . Exploded 1 | . . . . . 1 Melee . | . . . . . . Uniques/NPCs Destroyed . | . . . . . . Combat | -11 -10 -10 -10 -9 -8 -------- Run | Yrd Mat Min Exi Min Mat Hostile Shots Fired 116 | . 15 . . 1 100 Missed 40 | . 6 . . 1 33 Damage Taken 1358 | . 107 . . . 1251 Core 581 | . 24 . . . 557 Absorbed by Shields . | . . . . . . Core Remaining (%) 95 | 100 . . . 90 . Volleys Fired 60 | . 11 5 . . 44 Largest 2 | . 2 1 . . 2 Hottest 130 | . 130 63 . . 126 Shots Fired 109 | . 22 5 . . 82 Gun 101 | . 22 5 . . 74 Cannon . | . . . . . . Launcher 8 | . . . . . 8 Special . | . . . . . . Kinetic 15 | . . . . . 15 Thermal 86 | . 22 5 . . 59 Explosive 3 | . . . . . 3 Electromagnetic 5 | . . . . . 5 Robot Hit Streak 11 | . 4 3 . . 11 Robot Miss Streak 6 | . 2 2 . . 6 Penetration Max . | . . . . . . Secondary Targets 2 | . 1 . . . 1 Max Gunslinging Chain 1 | . 1 . . . 1 Shots Hit Robots 72 | . 13 3 . . 56 Core Hits 47 | . 7 3 . . 37 Critical Kills 1 | . . . . . 1 Critical Parts Destroyed . | . . . . . . Critical Strikes 3 | . . 1 . . 2 Burn 2 | . . 1 . . 1 Destroy 1 | . . . . . 1 Melee Attacks . | . . . . . . Impact . | . . . . . . Slashing . | . . . . . . Piercing . | . . . . . . Sneak Attacks . | . . . . . . Combat Hostiles . | . . . . . . Follow-up Attacks . | . . . . . . Damage Inflicted 1597 | . 200 53 . . 1344 Guns 1240 | . 200 53 . . 987 Cannons . | . . . . . . Explosions 357 | . . . . . 357 Melee . | . . . . . . Ramming . | . . . . . . Kinetic 181 | . . . . . 181 Thermal 1059 | . 200 53 . . 806 Explosive 204 | . . . . . 204 Electromagnetic 153 | . . . . . 153 Impact . | . . . . . . Slashing . | . . . . . . Piercing . | . . . . . . Highest Corruption 11 | . . . . . 11 Average Corruption 10 | . . . . . 10 Corruption Purged . | . . . . . . Corruption Blocked . | . . . . . . Effects 4 | . . . . . 4 Matter Fused 2 | . . . . . 2 Energy Discharges 1 | . . . . . 1 Misdirections 1 | . . . . . 1 Overload Shots . | . . . . . . Overflow Damage . | . . . . . . Projectiles . | . . . . . . Explosions . | . . . . . . Melee . | . . . . . . Knockbacks . | . . . . . . Impact . | . . . . . . Kinetic . | . . . . . . Secondary . | . . . . . . Self-Inflicted Damage 77 | . . . . . 77 Shots 3 | . . . . . 3 Rammed . | . . . . . . Targets Rammed . | . . . . . . Kicked . | . . . . . . Crushed . | . . . . . . Highest Temperature 272 | . 272 98 . . 162 Average Temperature 65 | . 92 54 . . 49 Received Heat Transfer 450 | . 63 . . . 387 Effects 1 | . 1 . . . . Energy Bleed 1 | . 1 . . . . Siege Activations . | . . . . . . Robots Corrupted . | . . . . . . Combat Hostiles . | . . . . . . Parts Fried . | . . . . . . Impact Corruptions . | . . . . . . Robots Melted . | . . . . . . Combat Hostiles . | . . . . . . Parts Melted 4 | . . . . . 4 Heat Transferred 2368 | . 481 185 . . 1702 Parts Sabotaged . | . . . . . . Parts Stolen . | . . . . . . Parts Stripped . | . . . . . . Power Chain Reactions 1 | . . . . . 1 Alert | -11 -10 -10 -10 -9 -8 ------- Run | Yrd Mat Min Exi Min Mat Peak Influence 863 | . 115 74 . . 863 Initial 44 | . . 44 . . . Average 262 | . 43 58 . . 439 Maximum Alert Level 3 | . . . . . 3 Low Security (%) 59 | . 100 100 . 100 25 Level 1 14 | . . . . . 26 Level 2 11 | . . . . . 20 Level 3 15 | . . . . . 27 Level 4 . | . . . . . . Level 5 . | . . . . . . High Security . | . . . . . . Max Security . | . . . . . . Squads Dispatched 10 | . 2 . . . 8 Investigation 4 | . 2 . . . 2 Extermination . | . . . . . . Reinforcement 3 | . . . . . 3 Assault 1 | . . . . . 1 Garrison 2 | . . . . . 2 Intercept . | . . . . . . Searches Triggered . | . . . . . . Construction Impeded . | . . . . . . Haulers Reinforced . | . . . . . . Active Scanning Responses . | . . . . . . Cargo Convoy Interrupts . | . . . . . . Stealth | -11 -10 -10 -10 -9 -8 --------- Run | Yrd Mat Min Exi Min Mat Distress Signals 3 | . . 1 . . 2 Communications Jammed . | . . . . . . Distress Signals . | . . . . . . Times Spotted 50 | . 5 1 . 2 42 Peak Tracking Total 11 | . 2 1 . 2 11 Tactical Retreats 8 | . . 1 . . 7 Traps | -11 -10 -10 -10 -9 -8 ------- Run | Yrd Mat Min Exi Min Mat Traps Triggered 1 | . . . . . 1 Indirectly . | . . . . . . Trap Hack Attempts 7 | . . 7 . . . Triggered . | . . . . . . Disarmed 1 | . . 1 . . . Reprogrammed . | . . . . . . Reused . | . . . . . . Traps Extracted . | . . . . . . Installed . | . . . . . . Triggered . | . . . . . . Machines | -11 -10 -10 -10 -9 -8 ---------- Run | Yrd Mat Min Exi Min Mat Machines Disabled 4 | . . . . . 4 Max in Single Turn 2 | . . . . . 2 Garrison Access 1 | . . . . . 1 Machines Repaired . | . . . . . . Machines Dismantled . | . . . . . . Machines Sabotaged . | . . . . . . Overloaded Fab Kills . | . . . . . . Hacking | -11 -10 -10 -10 -9 -8 --------- Run | Yrd Mat Min Exi Min Mat Machines Accessed 10 | . 6 1 . . 3 Terminals 7 | . 5 . . . 2 Fabricators . | . . . . . . Repair Stations . | . . . . . . Recycling Units 1 | . 1 . . . . Scanalyzers . | . . . . . . Garrison Access 1 | . . . . . 1 Total Hacks 36 | . 20 1 . . 15 Successful 24 | . 12 1 . . 11 Failed 12 | . 8 . . . 4 Catastrophic 2 | . 1 . . . 1 Database Lockouts . | . . . . . . Manual 30 | . 19 . 2 . 9 Terminals 27 | . 16 . . . 11 Fabricators . | . . . . . . Repair Stations . | . . . . . . Recycling Units 4 | . 4 . . . . Scanalyzers . | . . . . . . Garrison Access 4 | . . . . . 4 Terminal Hacks 9 | . 3 1 . . 5 Robot Analysis 1 | . 1 . . . . Prototype ID Bank 1 | . 1 . . . . Open Door 1 | . . 1 . . . Branch Access Points 1 | . . . . . 1 Scanalyzer Index 1 | . . . . . 1 Alert Level 2 | . . . . . 2 Locate Traps 1 | . 1 . . . . Dispatch Records 1 | . . . . . 1 Fabricator Hacks . | . . . . . . Repair Station Hacks . | . . . . . . Recycling Unit Hacks . | . . . . . . Scanalyzer . | . . . . . . Garrison Access Hacks . | . . . . . . Unauthorized Hacks 15 | . 9 . . . 6 Terminals 7 | . 5 . . . 2 Track 1 | . 1 . . . . Botnet 3 | . 2 . . . 1 Operators 2 | . 1 . . . 1 Sabotage 1 | . 1 . . . . Fabricators . | . . . . . . Repair Stations . | . . . . . . Recycling Units 4 | . 4 . . . . Monitor 1 | . 1 . . . . Reject 1 | . 1 . . . . Recyclers 1 | . 1 . . . . Mask 1 | . 1 . . . . Scanalyzers . | . . . . . . Garrison Access 4 | . . . . . 4 Broadcast 1 | . . . . . 1 Redirect 1 | . . . . . 1 Intercept 1 | . . . . . 1 Watchers 1 | . . . . . 1 Data Cores Recovered . | . . . . . . Used . | . . . . . . Hacking Detections 9 | . 6 . . . 3 Full Trace Events 2 | . 2 . . . . Feedback Events . | . . . . . . Feedback Blocked . | . . . . . . Robot Schematics Acquired . | . . . . . . Robots Built . | . . . . . . Authchips . | . . . . . . Time . | . . . . . . Total Robot Build Rating . | . . . . . . Part Schematics Acquired . | . . . . . . Parts Built . | . . . . . . Authchips . | . . . . . . Time . | . . . . . . Total Part Build Rating . | . . . . . . Parts Repaired . | . . . . . . Time . | . . . . . . Parts Recycled . | . . . . . . Recycled Matter . | . . . . . . Retrieved Matter . | . . . . . . Retrieved Components . | . . . . . . Parts Scanalyzed . | . . . . . . Part Schematics Acquired . | . . . . . . Parts Damaged . | . . . . . . Bothacking | -11 -10 -10 -10 -9 -8 ------------ Run | Yrd Mat Min Exi Min Mat Used RIF Installer . | . . . . . . Robots Hacked . | . . . . . . Non-combat . | . . . . . . Combat . | . . . . . . Robot Hacks Applied . | . . . . . . Relay Couplers Released 1 | . . . . . 1 Machine Destruction 1 | . . . . . 1 Fabnet Peak Effective % . | . . . . . . Robots Rewired . | . . . . . . Allies Hacked . | . . . . . . Hacks Repelled . | . . . . . . Allies | -11 -10 -10 -10 -9 -8 -------- Run | Yrd Mat Min Exi Min Mat Total Allies . | . . . . . . Largest Group . | . . . . . . Highest-Rated Group . | . . . . . . Highest-Rated Ally . | . . . . . . Total Orders . | . . . . . . Ally Attacks . | . . . . . . Total Damage . | . . . . . . Kills . | . . . . . . Allies Corrupted . | . . . . . . Allies Melted . | . . . . . . Intel | -11 -10 -10 -10 -9 -8 ------- Run | Yrd Mat Min Exi Min Mat Robot Analysis Total 1 | . 1 . . . . Derelict Logs Recovered 1 | . . 1 . . . Drone Launches . | . . . . . . Drone Recoveries . | . . . . . . Exploration | -11 -10 -10 -10 -9 -8 ------------- Run | Yrd Mat Min Exi Min Mat Turns Passed 922 | . 212 125 70 44 471 Spaces Moved 1440 | 1 214 222 214 124 665 Core . | . . . . . . Treads . | . . . . . . Legs 74 | 1 73 . . . . Wheels . | . . . . . . Hover . | . . . . . . Flight 1366 | . 141 222 214 124 665 Fastest Speed 26 | 120 32 32 32 32 26 Average Speed 40 | 120 67 32 32 32 39 Slowest Speed 275 | 120 275 32 32 32 175 Overloaded Moves 30 | . . . . . 30 Propulsion Burnouts . | . . . . . . Robots Hopped 14 | . 4 1 . 5 4 Cave-ins Triggered . | . . . . . . Exploration Rate (%) 35 | 2 46 47 61 26 33 Regions Visited 5 Branch Regions 3 Pre-discovered Areas 1 | . . 1 . . . Known Exits Taken . | . . . . . . Unknown Exits Taken 5 | 1 1 1 1 1 . Scrap Searched 3 | . . 2 . 1 . Spaces Dug . | . . . . . . Terrain Destroyed 52 | . . . . . 52 Melee . | . . . . . . Projectile . | . . . . . . AOE 52 | . . . . . 52 Terrain Rammed . | . . . . . . Walls Destroyed . | . . . . . . Machines Disabled . | . . . . . . Actions | -11 -10 -10 -10 -9 -8 --------- Run | Yrd Mat Min Exi Min Mat Total 1653 | . 259 270 215 122 787 Wait 66 | . 8 25 . 4 29 Move 1407 | . 205 219 213 113 657 Hop 14 | . 4 1 . 5 4 Pick Up 10 | . 4 2 1 . 3 Fast Attach 28 | . 8 2 . . 18 Attach 9 | . 1 1 . . 7 Detach 13 | . 4 2 . . 7 Swap 9 | . 1 2 . . 6 Drop 30 | . 13 4 1 . 12 Fire 60 | . 11 5 . . 44 Melee . | . . . . . . Ram . | . . . . . . Kick . | . . . . . . Crush . | . . . . . . Escape Stasis . | . . . . . . Rewire . | . . . . . . Trap 7 | . . 7 . . . Miscellaneous . | . . . . . . Route ------- -11/Scrapyard -10/Materials (discovered 2 exits: [*Mat] / *Min) -10/Mines -10/Exiles -9/Mines -8/Materials History --------- Turn | Location | Event 1 | -11/Scrapyard | Discovered new exit (range 0) 1 | -11/Scrapyard | Entered Materials 77 | -10/Materials | Discovered new exit (range 11) 179 | -10/Materials | Discovered new exit (range 7) 213 | -10/Materials | Entered Mines 218 | -10/Mines | Met a Derelict who couldn't figure out how to use a Trap Extractor 336 | -10/Mines | Deemed a non-threat by the Exiles lab entrance 336 | -10/Mines | Discovered new exit (range 5) 338 | -10/Mines | Entered Exiles 338 | -10/Exiles | Found Exiles lab abandoned 384 | -10/Exiles | Build established: Sprinter 404 | -10/Exiles | Discovered new exit (range 14) 408 | -10/Exiles | Entered Mines 415 | -9/Mines | Assembled infested the area 449 | -9/Mines | Discovered new exit (range 8) 452 | -9/Mines | Entered Materials 452 | -8/Materials | Evolved 4 slots: Propulsion x1, Utility x3 631 | -8/Materials | Garrison activated, responded to threat 811 | -8/Materials | Destroyed 8 combat bots 813 | -8/Materials | Lost 3 parts (1p1n1u) 832 | -8/Materials | System corruption reached 10% 884 | -8/Materials | Core integrity fell below 50% 897 | -8/Materials | Core integrity fell below 20% 919 | -8/Materials | Lost 6 parts (3n3u) 923 | -8/Materials | Destroyed by X-62 Marksman with Gauss Rifle Last Messages --------------- 00888_ Critical hit (Blast). 00888_ Knocked back. 00890_ Dropped Lgt. Assault Rifle. 00891_ Penetrated by Slug. 00892_ Knocked back. 00892_ T-07 Excavator destroyed. 00894_ Knocked back. 00896_ Slug penetrates H-61 Shepherd. 00903_ System corrupted: Matter fused (-6). 00903_ Acquired Missile Launcher. 00904_ Dropped Hvy. Particle Gun. 00906_ Acquired Hvy. Particle Gun. 00912_ G-47 Trooper destroyed. 00912_ Material Compactor disabled. 00916_ G-47 Trooper destroyed. 00916_ Slug penetrates Material Compactor. 00920_ Penetrated by Slug. 00921_ U-05 Engineer lays Concrete. 00922_ Dropped Missile Launcher. 00922_ U-05 Engineer lays Concrete. Map ----- +----------------------------------------------------+ | ??????????????????????????? | | ??????????????????????????? | | ??????????????????????????? | | ??????????????????????????? | | ??????????????????????????? | | ??????????????????????????? | | ??????????????????????????? | | ??????????????????????????? | | ??????????????????????????? | | ?????????###??????????????? | | ????????? * ??????????????? | | ????????? ??????????????? | | ????????? ??????????????? | | ????????? ??????????????? | | ????????? ??????????????? | | ?????????# #??????????????? | | ?????????# #??????????????? | | ########## #????????o?????? | | # + #??####+####???? | | # """ # ##?# ###+# | | # Y" " " # | | # " | | #/ T | | # % xu | | #] g%= # | | # @ # ##### | | #! / ## ###???? | | ## ### #?????? | | ?### # ### " #?# #?????? | | ????x#?##?# T #?# #?????? | | ?????#????# " ### ##????? | | ??????????# ## #????? | | ?????????#######% H #????? | | ???# +????? | | ?????????####### / #???## | | ???????????????# | #???# | | ???????????????###=###???#* | | ?????????????????#%#?????#% | | ?????????????????#[#######! | | ?????????????????#%% =+ | | ?????????????????#### # | | ????????????????????# ## | | ????????????????????# = | | ????????????????????# ##### | | ??????????????###???# #???# | | ???????######## #???# #???# | | ???????# #???# #???# | | ?????### "" ##### #???# | | ?????# # + #???# | | ?????# # ##### #???# | +----------------------------------------------------+ Best States ------------- Heat Dissipation 41 Energy Generation 14 Energy Capacity 265 Matter Stores 300 Matter Capacity 300 Sight Range 18 Terrain Scan Density 10 Evasion (%) 64 Salvage Targeting 2 Defensive Hacking 10 Authchip Count 1 Item Schematics ----------------- None Robot Schematics ------------------ None Fabricated ------------ Nothing Alien Tech Used ----------------- None Achievements -------------- None Challenges ------------ None Game ------ Seed AnalysisSalvageAutogun Manual? 0 Play Time 00:14:26 Cumulative 669.1 hours Start 2024.02.22 @ 14:41:18 End 2024.02.22 @ 14:58:14 Sessions 1 Manual Loads 0 Difficulty Rogue Special Mode None Game No. 681 Rogue 406 Adventurer 123 Explorer 152 Win Type - Total 25 Types 19/0/4/1/0/0/0/1/0 Lore% 80 Gallery% 91 Achievement% 76 Wizard Run 0 Options --------- Layout 0 ASCII 0 Keyboard 1 Movement Numpad Keybinds 0 Fullscreen 2 Font 18/SmallcapsGlow Map View 76x50 Zoom Use 0% Tactical HUD 1 Map Filters NONE Filters NONE Steam 1 RUN: eb726e0b-2b78-494c-a695-2458d253e3bc